lending/lending_fUSD_20250819
["ID","MTS","AMOUNT","RATE_DAILY","PERIOD"]
[380230961,1755619842276,-151.0,0.00011099,2]
[380230963,1755619842286,-271.870247,0.00011099,2]
[380230965,1755619842295,-151.0,0.00011099,2]
[380230967,1755619842305,-151.0,0.00011099,2]
[380230969,1755619842314,-151.0,0.00011099,2]
[380230971,1755619842324,-192.992655,0.00011099,2]
[380230972,1755619842334,-195.061797,0.00011099,2]
[380230975,1755619842347,-151.0,0.00011099,2]
[380230977,1755619842357,-1033.296106,0.00011099,2]
[380230979,1755619842367,-151.0,0.00011099,2]
[380230981,1755619842376,-151.0,0.00011099,2]
[380230983,1755619842386,-1033.296106,0.00011099,2]
[380230985,1755619842396,-151.0,0.00011099,2]
[380230987,1755619842406,-1033.296106,0.00011099,2]
[380230989,1755619842415,-1033.296106,0.00011099,2]
[380230991,1755619842425,-151.0,0.00011099,2]
[380230993,1755619842435,-151.0,0.00011099,2]
[380230995,1755619842444,-151.0,0.00011099,2]
[380230997,1755619842454,-151.0,0.00011099,2]
[380230999,1755619842464,-151.0,0.00011099,2]
[380231001,1755619842473,-5963.793232,0.00011099,2]
[380231003,1755619842483,-151.0,0.00011099,2]
[380231005,1755619842492,-5963.793232,0.00011099,2]
[380231007,1755619842501,-5963.793232,0.00011099,2]
[380231009,1755619842511,-151.0,0.00011099,2]
[380231011,1755619842520,-5963.793232,0.00011099,2]
[380231013,1755619842529,-1124.362949,0.00011099,2]
[380231014,1755619842538,-236.208573,0.00011099,2]
[380231016,1755619842548,-1124.362949,0.00011099,2]
[380231019,1755619842558,-1124.362949,0.00011099,2]
[380231020,1755619842568,-313.227851,0.00011099,2]
[380231022,1755619842577,-151.0,0.00011099,2]
[380231024,1755619842587,-1124.362949,0.00011099,2]
[380231026,1755619842596,-313.227851,0.00011099,2]
[380231028,1755619842606,-7509.320301,0.00011099,2]
[380231030,1755619842615,-313.227851,0.00011099,2]
[380231033,1755619842626,-7509.320301,0.00011099,2]
[380231035,1755619842635,-200.268878,0.00011099,2]
[380231037,1755619842645,-313.227851,0.00011099,2]
[380231039,1755619842654,-200.268878,0.00011099,2]
[380231040,1755619842663,-7509.320301,0.00011099,2]
[380231042,1755619842672,-151.0,0.00011099,2]
[380231044,1755619842681,-7509.320301,0.00011099,2]
[380231046,1755619842691,-200.268878,0.00011099,2]
[380231048,1755619842700,-200.268878,0.00011099,2]
[380231050,1755619842709,-151.0,0.00011099,2]
[380231052,1755619842719,-176.485326,0.00011099,2]
[380231054,1755619842728,-186.023308,0.00011099,2]
[380231056,1755619842738,-151.0,0.00011099,2]
[380231058,1755619842747,-295.609294,0.00011099,2]
[380231060,1755619842756,-151.0,0.00011099,2]
[380231062,1755619842766,-151.0,0.00011099,2]
[380231064,1755619842775,-274.351337,0.00011099,2]
[380231066,1755619842785,-388.57,0.00011102,2]
[380231068,1755619842794,-254.52247346,0.00011123,3]
[380231070,1755619842804,-398.2,0.00011124,2]
[380231072,1755619842813,-150.0,0.00011273,2]
[380231074,1755619842823,-1067.0,0.00011273,2]
[380231077,1755619842833,-500.0,0.00011273,2]
[380231079,1755619842842,-150.0,0.00011273,2]
[380231081,1755619842852,-150.0,0.00011273,2]
[380231084,1755619842862,-463.0,0.00011273,2]
[380231086,1755619842873,-500.0,0.00011273,2]
[380231088,1755619842882,-880.37555554,0.00011327,2]
[380231090,1755619842891,-6091.0,0.00011331,2]
[380231092,1755619842900,-717.0,0.00011331,2]
[380231094,1755619842910,-21497.0,0.00011331,2]
[380231096,1755619842919,-4152.0,0.00011331,2]
[380231098,1755619842928,-3549.368,0.00011331,2]
[380231100,1755619842937,-1172.0,0.00011331,2]
[380231102,1755619842947,-2751.0,0.00011507,2]
[380231104,1755619842957,-150.0,0.00011508,2]
[380231106,1755619842966,-904.0,0.00011508,2]
[380231108,1755619842975,-3371.0,0.00011508,2]
[380231110,1755619842985,-1296.806,0.00011508,2]
[380231112,1755619842994,-566.0,0.00011508,2]
[380231114,1755619843003,-608.265,0.00011508,2]
[380231116,1755619843013,-1297.0,0.00011508,2]
[380231118,1755619843022,-1656.0,0.00011508,2]
[380231120,1755619843032,-151.0,0.00011508,2]
[380231122,1755619843042,-151.0,0.00011508,2]
[380231124,1755619843052,-168.41258,0.00011508,2]
[380231126,1755619843062,-151.0,0.00011539,2]
[380231129,1755619843072,-150.0,0.00011547,2]
[380231131,1755619843081,-1067.0,0.00011547,2]
[380231133,1755619843091,-500.0,0.00011547,2]
[380231135,1755619843101,-150.0,0.00011547,2]
[380231137,1755619843111,-150.0,0.00011547,2]
[380231139,1755619843122,-463.0,0.00011547,2]
[380231141,1755619843132,-500.0,0.00011547,2]
[380231143,1755619843141,-255.0,0.00011552,2]
[380231145,1755619843152,-2921.3329673,0.00011559,2]
[380231147,1755619843172,-624.0,0.000116,2]
[380231149,1755619843181,-1000.0,0.00011621,2]
[380231151,1755619843190,-502.84938939,0.00011621,2]
[380231153,1755619843200,-1000.0,0.00011621,2]
[380231155,1755619843210,-651.8374928,0.00011684,2]
[380231157,1755619843220,-587.0,0.00011807,2]
[380231159,1755619843229,-160.0,0.00011812,2]
[380231161,1755619843240,-257.91778498,0.00011812,2]
[380231163,1755619843249,-150.0,0.00011821,2]
[380231165,1755619843260,-1067.0,0.00011821,2]
[380231167,1755619843270,-500.0,0.00011821,2]
[380231169,1755619843280,-168.18091746,0.00011821,2]
[380231171,1755619843289,-150.0,0.00011821,2]
[380231173,1755619843299,-463.0,0.00011821,2]
[380231175,1755619843308,-617.63486404,0.00011821,2]
[380231177,1755619843318,-300.0,0.000119,4]
[380231214,1755619843660,-166.77,0.00011905,2]
[380231216,1755619843670,-95154.79992501,0.00012,2]
[380231218,1755619843680,-26060.24952738,0.00012,2]
[380231220,1755619843689,-300.0,0.00012,2]
[380231223,1755619843703,-300.0,0.00012,2]
[380231224,1755619843713,-151.0,0.00012,2]
[380231226,1755619843722,-151.0,0.00012,2]
[380231228,1755619843732,-151.0,0.00012,2]
[380231231,1755619843742,-151.0,0.00012,2]
[380231232,1755619843751,-151.116898,0.00012,2]
[380231235,1755619843761,-151.0,0.00012,2]
[380231237,1755619843770,-151.0,0.00012,2]
[380231238,1755619843779,-151.0,0.00012,2]
[380231241,1755619843790,-151.0,0.00012,2]
[380231243,1755619843799,-151.0,0.00012,2]
[380231245,1755619843808,-151.0,0.00012,2]
[380231247,1755619843818,-151.459575,0.00012,2]
[380231249,1755619843830,-151.0,0.00012,2]
[380231251,1755619843840,-250.650184,0.00012,2]
[380231253,1755619843850,-218.066385,0.00012,2]
[380231255,1755619843860,-151.0,0.00012,2]
[380231257,1755619843871,-218.066385,0.00012,2]
[380231259,1755619843880,-218.066385,0.00012,2]
[380231261,1755619843890,-218.066385,0.00012,2]
[380231263,1755619843899,-151.0,0.00012,2]
[380231265,1755619843909,-151.0,0.00012,2]
[380231267,1755619843919,-501.231888,0.00012,2]
[380231269,1755619843928,-501.231888,0.00012,2]
[380231271,1755619843937,-501.231888,0.00012,2]
[380231273,1755619843947,-151.0,0.00012,2]
[380231275,1755619843956,-501.231888,0.00012,2]
[380231277,1755619843965,-238.387618,0.00012,2]
[380231279,1755619843975,-151.0,0.00012,2]
[380231281,1755619843985,-238.387618,0.00012,2]
[380231283,1755619843995,-151.0,0.00012,2]
[380231285,1755619844004,-151.0,0.00012,2]
[380231287,1755619844014,-254.615506,0.00012,2]
[380231289,1755619844023,-151.0,0.00012,2]
[380231291,1755619844032,-151.0,0.00012,2]
[380231293,1755619844042,-254.615506,0.00012,2]
[380231295,1755619844053,-254.615506,0.00012,2]
[380231297,1755619844063,-238.387618,0.00012,2]
[380231299,1755619844073,-254.615506,0.00012,2]
[380231301,1755619844083,-238.387618,0.00012,2]
[380231303,1755619844093,-390.824012,0.00012,2]
[380231305,1755619844102,-390.824012,0.00012,2]
[380231307,1755619844112,-390.824012,0.00012,2]
[380231309,1755619844125,-390.824012,0.00012,2]
[380231311,1755619844135,-151.0,0.00012,2]
[380231313,1755619844145,-153.061572,0.00012,2]
[380231315,1755619844155,-152.551501,0.00012,2]
[380231317,1755619844166,-151.0,0.00012,2]
[380231319,1755619844176,-151.0,0.00012,2]
[380231321,1755619844185,-151.0,0.00012,2]
[380231323,1755619844195,-151.0,0.00012,2]
[380231325,1755619844205,-151.0,0.00012,2]
[380231327,1755619844215,-151.0,0.00012,2]
[380231329,1755619844224,-432.248279,0.00012,2]
[380231331,1755619844235,-151.0,0.00012,2]
[380231333,1755619844245,-151.0,0.00012,2]
[380231335,1755619844254,-432.248279,0.00012,2]
[380231337,1755619844264,-151.0,0.00012,2]
[380231339,1755619844273,-432.248279,0.00012,2]
[380231341,1755619844283,-154.083886,0.00012,2]
[380231343,1755619844293,-432.248279,0.00012,2]
[380231345,1755619844302,-154.083886,0.00012,2]
[380231347,1755619844311,-151.0,0.00012,2]
[380231349,1755619844321,-154.083886,0.00012,2]
[380231351,1755619844331,-151.0,0.00012,2]
[380231353,1755619844341,-154.083886,0.00012,2]
[380231355,1755619844350,-547.700244,0.00012,2]
[380231357,1755619844360,-547.700244,0.00012,2]
[380231359,1755619844371,-547.700244,0.00012,2]
[380231361,1755619844381,-547.700244,0.00012,2]
[380231363,1755619844390,-151.0,0.00012,2]
[380231365,1755619844400,-151.0,0.00012,2]
[380231367,1755619844410,-151.0,0.00012,2]
[380231369,1755619844420,-371.885207,0.00012,2]
[380231371,1755619844430,-151.0,0.00012,2]
[380231373,1755619844440,-371.885207,0.00012,2]
[380231375,1755619844450,-371.885207,0.00012,2]
[380231377,1755619844461,-371.885207,0.00012,2]
[380231379,1755619844472,-151.0,0.00012,2]
[380231381,1755619844482,-151.0,0.00012,2]
[380231383,1755619844492,-384.92158,0.00012,2]
[380231385,1755619844502,-384.92158,0.00012,2]
[380231387,1755619844512,-384.92158,0.00012,2]
[380231389,1755619844522,-384.92158,0.00012,2]
[380231391,1755619844532,-594.183332,0.00012,2]
[380231393,1755619844541,-594.183332,0.00012,2]
[380231395,1755619844551,-585.40732,0.00012,2]
[380231397,1755619844561,-594.183332,0.00012,2]
[380231399,1755619844571,-532.493875,0.00012,2]
[380231402,1755619844581,-594.183332,0.00012,2]
[380231404,1755619844590,-585.40732,0.00012,2]
[380231406,1755619844600,-151.0,0.00012,2]
[380231408,1755619844609,-532.493875,0.00012,2]
[380231409,1755619844620,-585.40732,0.00012,2]
[380231412,1755619844629,-532.493875,0.00012,2]
[380231413,1755619844639,-1004.499885,0.00012,2]
[380231415,1755619844649,-585.40732,0.00012,2]
[380231417,1755619844660,-532.493875,0.00012,2]
[380231419,1755619844679,-1004.499885,0.00012,2]
[380231421,1755619844689,-292.928427,0.00012,2]
[380231423,1755619844699,-292.928427,0.00012,2]
[380231425,1755619844709,-292.928427,0.00012,2]
[380231427,1755619844719,-292.928427,0.00012,2]
[380231430,1755619844733,-1004.499885,0.00012,2]
[380231432,1755619844742,-1004.499885,0.00012,2]
[380231434,1755619844752,-151.0,0.00012,2]
[380231436,1755619844762,-151.0,0.00012,2]
[380231438,1755619844774,-242.444781,0.00012,2]
[380231440,1755619844783,-151.0,0.00012,2]
[380231442,1755619844793,-151.0,0.00012,2]
[380231444,1755619844803,-151.292327,0.00012,2]
[380231446,1755619844813,-151.0,0.00012,2]
[380231448,1755619844822,-151.0,0.00012,2]
[380231450,1755619844832,-151.0,0.00012,2]
[380231452,1755619844842,-232.603273,0.00012,2]
[380231454,1755619844852,-232.603273,0.00012,2]
[380231456,1755619844862,-232.603273,0.00012,2]
[380231458,1755619844873,-232.603273,0.00012,2]
[380231460,1755619844883,-200.0,0.00012,2]
[380231464,1755619844892,-151.0,0.00012,2]
[380231467,1755619844901,-176.485326,0.00012,2]
[380231469,1755619844910,-151.0,0.00012,2]
[380231471,1755619844920,-151.0,0.00012,2]
[380231473,1755619844929,-1000.0,0.00012032,2]
[380231475,1755619844938,-218.0,0.0001205,2]
[380231477,1755619844947,-25412.41,0.00012055,2]
[380231479,1755619844956,-151.0,0.00012087,2]
[380231481,1755619844965,-150.0,0.00012095,2]
[380231483,1755619844975,-1067.0,0.00012095,2]
[380231485,1755619844984,-500.0,0.00012095,2]
[380231487,1755619844993,-207.91791004,0.00012095,2]
[380231489,1755619845002,-463.0,0.00012095,2]
[380231491,1755619845012,-174.15,0.000121,7]
[380231493,1755619845021,-174.15,0.000121,7]
[380231495,1755619845030,-26553.76,0.000121,7]
[380231497,1755619845040,-26553.76,0.000121,7]
[380231499,1755619845050,-21612.0,0.0001211,2]
[380231501,1755619845060,-1500.0,0.00012168,2]
[380231503,1755619845069,-1128.41866633,0.00012168,2]
[380231505,1755619845079,-174.15,0.000122,7]
[380231507,1755619845088,-26553.76,0.000122,7]
[380231509,1755619845097,-5574.576991,0.000122,7]
[380231511,1755619845106,-326.313225,0.000122,7]
[380231513,1755619845116,-5404.153661,0.000122,7]
[380231515,1755619845129,-4000.0,0.00012234,3]
[380231517,1755619845139,-389288.95,0.000123,2]
[380231519,1755619845148,-151.0,0.000123,2]
[380231521,1755619845159,-188.096615,0.000123,2]
[380231523,1755619845171,-188.096615,0.000123,2]
[380231525,1755619845180,-271.870247,0.000123,2]
[380231527,1755619845189,-271.870247,0.000123,2]
[380231529,1755619845199,-188.096615,0.000123,2]
[380231531,1755619845209,-262.148024,0.000123,2]
[380231533,1755619845218,-151.0,0.000123,2]
[380231535,1755619845228,-151.0,0.000123,2]
[380231537,1755619845239,-271.870247,0.000123,2]
[380231538,1755619845248,-188.096615,0.000123,2]
[380231539,1755619845258,-151.0,0.000123,2]
[380231540,1755619845269,-160.562854,0.000123,2]
[380231541,1755619845278,-271.870247,0.000123,2]
[380231542,1755619845287,-151.0,0.000123,2]
[380231543,1755619845296,-151.0,0.000123,2]
[380231544,1755619845306,-151.0,0.000123,2]
[380231545,1755619845315,-151.0,0.000123,2]
[380231546,1755619845325,-1033.296106,0.000123,2]
[380231547,1755619845334,-151.0,0.000123,2]
[380231548,1755619845343,-288.015867,0.000123,2]
[380231549,1755619845352,-1033.296106,0.000123,2]
[380231550,1755619845361,-151.0,0.000123,2]
[380231552,1755619845371,-1033.296106,0.000123,2]
[380231554,1755619845380,-1033.296106,0.000123,2]
[380231556,1755619845389,-151.0,0.000123,2]
[380231559,1755619845398,-151.0,0.000123,2]
[380231561,1755619845408,-151.0,0.000123,2]
[380231563,1755619845417,-151.0,0.000123,2]
[380231565,1755619845426,-160.289918,0.000123,2]
[380231567,1755619845435,-5963.793232,0.000123,2]
[380231569,1755619845444,-151.0,0.000123,2]
[380231571,1755619845454,-5963.793232,0.000123,2]
[380231573,1755619845463,-5963.793232,0.000123,2]
[380231575,1755619845473,-151.0,0.000123,2]
[380231577,1755619845482,-5963.793232,0.000123,2]
[380231579,1755619845492,-1124.362949,0.000123,2]
[380231581,1755619845501,-1124.362949,0.000123,2]
[380231583,1755619845510,-1124.362949,0.000123,2]
[380231585,1755619845519,-313.227851,0.000123,2]
[380231587,1755619845528,-1124.362949,0.000123,2]
[380231589,1755619845538,-313.227851,0.000123,2]
[380231591,1755619845547,-7509.320301,0.000123,2]
[380231593,1755619845556,-313.227851,0.000123,2]
[380231595,1755619845565,-200.268878,0.000123,2]
[380231597,1755619845575,-7509.320301,0.000123,2]
[380231598,1755619845584,-313.227851,0.000123,2]
[380231600,1755619845594,-200.268878,0.000123,2]
[380231602,1755619845603,-7509.320301,0.000123,2]
[380231604,1755619845612,-7509.320301,0.000123,2]
[380231606,1755619845622,-200.268878,0.000123,2]
[380231608,1755619845631,-200.268878,0.000123,2]
[380231610,1755619845641,-151.0,0.000123,2]
[380231612,1755619845650,-388.57,0.00012335,2]
[380231614,1755619845660,-525.0,0.00012346,2]
[380231616,1755619845669,-398.2,0.0001236,2]
[380231618,1755619845679,-211.9839538,0.00012369,2]
[380231621,1755619845688,-1067.0,0.00012369,2]
[380231623,1755619845698,-500.0,0.00012369,2]
[380231624,1755619845708,-463.0,0.00012369,2]
[380231626,1755619845717,-21449.53,0.000124,2]
[380231628,1755619845726,-5574.576991,0.00012425,7]
[380231630,1755619845735,-326.313225,0.00012425,7]
[380231632,1755619845744,-5404.153661,0.00012425,7]
[380231634,1755619845754,-174.15,0.000125,7]
[380231636,1755619845763,-301.59104201,0.000125,2]
[380231638,1755619845774,-26553.76,0.000125,7]
[380231641,1755619845783,-5000.0,0.000125,2]
[380231643,1755619845792,-5574.576991,0.00012525,2]
[380231645,1755619845802,-326.313225,0.00012525,2]
[380231647,1755619845811,-5404.153661,0.00012525,2]
[380231649,1755619845821,-5888.0,0.00012526,2]
[380231651,1755619845830,-5888.0,0.00012536,2]
[380231654,1755619845840,-1425.0,0.00012544,2]
[380231656,1755619845849,-5888.0,0.00012565,2]
[380231658,1755619845858,-5888.0,0.00012568,2]
[380231659,1755619845867,-151.0,0.00012568,2]
[380231661,1755619845878,-151.0,0.00012568,2]
[380231663,1755619845887,-151.0,0.00012568,2]
[380231665,1755619845897,-151.0,0.00012568,2]
[380231667,1755619845906,-151.0,0.00012568,2]
[380231670,1755619845916,-151.0,0.00012568,2]
[380231671,1755619845925,-151.0,0.00012568,2]
[380231674,1755619845935,-151.0,0.00012568,2]
[380231676,1755619845944,-151.0,0.00012568,2]
[380231678,1755619845953,-151.0,0.00012568,2]
[380231680,1755619845962,-214.374032,0.00012568,2]
[380231682,1755619845971,-180.392708,0.00012568,2]
[380231684,1755619845980,-214.374032,0.00012568,2]
[380231686,1755619845989,-214.374032,0.00012568,2]
[380231688,1755619845998,-151.0,0.00012568,2]
[380231690,1755619846008,-214.374032,0.00012568,2]
[380231692,1755619846017,-151.0,0.00012568,2]
[380231694,1755619846027,-151.0,0.00012568,2]
[380231696,1755619846036,-245.201341,0.00012568,2]
[380231698,1755619846045,-170.19,0.00012591,2]
[380231700,1755619846055,-5888.0,0.00012609,2]
[380231702,1755619846064,-500.0,0.00012609,2]
[380231704,1755619846073,-708.0,0.00012609,2]
[380231706,1755619846083,-500.0,0.00012609,2]
[380231708,1755619846092,-500.0,0.00012609,2]
[380231710,1755619846101,-500.0,0.00012609,2]
[380231712,1755619846110,-500.0,0.00012609,2]
[380231714,1755619846120,-500.0,0.00012609,2]
[380231716,1755619846132,-500.0,0.00012609,2]
[380231718,1755619846141,-500.0,0.00012609,2]
[380231720,1755619846151,-500.0,0.00012609,2]
[380231722,1755619846165,-500.0,0.00012609,2]
[380231724,1755619846174,-500.0,0.00012609,2]
[380231726,1755619846183,-500.0,0.00012609,2]
[380231728,1755619846192,-500.0,0.00012609,2]
[380231730,1755619846202,-500.0,0.00012609,2]
[380231732,1755619846211,-500.0,0.00012609,2]
[380231734,1755619846220,-500.0,0.00012609,2]
[380231736,1755619846231,-500.0,0.00012609,2]
[380231738,1755619846240,-500.0,0.00012609,2]
[380231740,1755619846249,-500.0,0.00012609,2]
[380231742,1755619846259,-500.0,0.00012609,2]
[380231744,1755619846268,-500.0,0.00012609,2]
[380231746,1755619846277,-500.0,0.00012609,2]
[380231748,1755619846287,-500.0,0.00012609,2]
[380231750,1755619846297,-500.0,0.00012609,2]
[380231752,1755619846307,-500.0,0.00012609,2]
[380231754,1755619846317,-500.0,0.00012609,2]
[380231756,1755619846326,-500.0,0.00012609,2]
[380231758,1755619846336,-500.0,0.00012609,2]
[380231760,1755619846346,-500.0,0.00012609,2]
[380231762,1755619846356,-696.0,0.00012609,2]
[380231764,1755619846366,-500.0,0.00012609,2]
[380231766,1755619846379,-500.0,0.00012609,2]
[380231768,1755619846390,-500.0,0.00012609,2]
[380231770,1755619846400,-500.0,0.00012609,2]
[380231772,1755619846409,-500.0,0.00012609,2]
[380231774,1755619846419,-500.0,0.00012609,2]
[380231776,1755619846429,-500.0,0.00012609,2]
[380231778,1755619846439,-500.0,0.00012609,2]
[380231780,1755619846449,-500.0,0.00012609,2]
[380231782,1755619846459,-500.0,0.00012609,2]
[380231784,1755619846468,-500.0,0.00012609,2]
[380231786,1755619846478,-500.0,0.00012609,2]
[380231788,1755619846487,-500.0,0.00012609,2]
[380231790,1755619846499,-500.0,0.00012609,2]
[380231792,1755619846509,-500.0,0.00012609,2]
[380231794,1755619846518,-500.0,0.00012609,2]
[380231796,1755619846527,-500.0,0.00012609,2]
[380231798,1755619846537,-500.0,0.00012609,2]
[380231800,1755619846546,-500.0,0.00012609,2]
[380231802,1755619846556,-500.0,0.00012609,2]
[380231804,1755619846565,-500.0,0.00012609,2]
[380231806,1755619846574,-500.0,0.00012609,2]
[380231808,1755619846583,-500.0,0.00012609,2]
[380231810,1755619846592,-500.0,0.00012609,2]
[380231812,1755619846601,-500.0,0.00012609,2]
[380231814,1755619846610,-500.0,0.00012609,2]
[380231816,1755619846619,-500.0,0.00012609,2]
[380231818,1755619846631,-500.0,0.00012609,2]
[380231820,1755619846640,-500.0,0.00012609,2]
[380231822,1755619846650,-500.0,0.00012609,2]
[380231824,1755619846659,-500.0,0.00012609,2]
[380231825,1755619846668,-500.0,0.00012609,2]
[380231828,1755619846677,-500.0,0.00012609,2]
[380231829,1755619846687,-151.0,0.00012609,2]
[380231831,1755619846696,-151.0,0.00012609,2]
[380231833,1755619846705,-151.0,0.00012609,2]
[380231835,1755619846714,-151.0,0.00012609,2]
[380231837,1755619846724,-151.0,0.00012609,2]
[380231839,1755619846733,-151.0,0.00012609,2]
[380231841,1755619846743,-151.0,0.00012609,2]
[380231843,1755619846752,-153.398429,0.00012609,2]
[380231845,1755619846761,-182.675276,0.00012609,2]
[380231847,1755619846771,-182.675276,0.00012609,2]
[380231849,1755619846780,-182.675276,0.00012609,2]
[380231851,1755619846789,-182.675276,0.00012609,2]
[380231853,1755619846799,-151.0,0.00012609,2]
[380231855,1755619846808,-151.0,0.00012609,2]
[380231857,1755619846817,-901.631272,0.00012609,2]
[380231859,1755619846827,-151.0,0.00012609,2]
[380231861,1755619846836,-156.795,0.00012609,2]
[380231863,1755619846845,-901.631272,0.00012609,2]
[380231865,1755619846855,-151.380829,0.00012609,2]
[380231867,1755619846865,-156.795,0.00012609,2]
[380231869,1755619846876,-901.631272,0.00012609,2]
[380231871,1755619846885,-151.0,0.00012609,2]
[380231873,1755619846894,-156.795,0.00012609,2]
[380231875,1755619846904,-901.631272,0.00012609,2]
[380231877,1755619846913,-258.533558,0.00012609,2]
[380231879,1755619846922,-156.795,0.00012609,2]
[380231881,1755619846932,-151.0,0.00012609,2]
[380231883,1755619846942,-296.39277,0.00012609,2]
[380231885,1755619846951,-296.39277,0.00012609,2]
[380231887,1755619846961,-296.39277,0.00012609,2]
[380231889,1755619846970,-151.0,0.00012609,2]
[380231891,1755619846979,-275.431523,0.00012609,2]
[380231893,1755619846989,-296.39277,0.00012609,2]
[380231895,1755619846998,-275.431523,0.00012609,2]
[380231897,1755619847007,-275.431523,0.00012609,2]
[380231899,1755619847016,-275.431523,0.00012609,2]
[380231901,1755619847026,-151.0,0.00012609,2]
[380231903,1755619847036,-258.533558,0.00012609,2]
[380231905,1755619847045,-151.0,0.00012609,2]
[380231907,1755619847055,-151.0,0.00012609,2]
[380231909,1755619847064,-285.05531,0.00012609,2]
[380231911,1755619847074,-258.533558,0.00012609,2]
[380231913,1755619847084,-258.533558,0.00012609,2]
[380231915,1755619847094,-255.88959,0.00012609,2]
[380231917,1755619847103,-255.88959,0.00012609,2]
[380231919,1755619847113,-255.88959,0.00012609,2]
[380231921,1755619847124,-255.88959,0.00012609,2]
[380231923,1755619847134,-1372.11615538,0.00012616,2]
[380231925,1755619847143,-5888.0,0.0001262,2]
[380231927,1755619847153,-151.0,0.00012635,2]
[380231929,1755619847168,-1067.0,0.00012643,2]
[380231931,1755619847178,-500.0,0.00012643,2]
[380231933,1755619847187,-463.0,0.00012643,2]
[380231935,1755619847197,-5888.0,0.00012647,2]
[380231937,1755619847207,-150.02698916,0.00012648,5]
[380231939,1755619847216,-5574.576991,0.0001265,7]
[380231941,1755619847226,-326.313225,0.0001265,7]
[380231943,1755619847239,-5404.153661,0.0001265,7]
[380231945,1755619847249,-150.0,0.0001265,2]
[380231947,1755619847259,-5888.0,0.00012657,2]
[380231949,1755619847268,-433.0,0.00012668,2]
[380231951,1755619847277,-1000.0,0.00012696,2]
[380231953,1755619847287,-3172.36,0.000127,2]
[380231955,1755619847297,-375.0,0.00012702,2]
[380231957,1755619847306,-150.4853289,0.00012706,2]
[380231959,1755619847316,-150.0,0.00012707,2]
[380231961,1755619847325,-785.59124466,0.00012707,2]
[380231963,1755619847335,-1425.0,0.00012711,2]
[380231965,1755619847345,-536.17555505,0.00012716,2]
[380231967,1755619847355,-1145.08294565,0.0001273,2]
[380231969,1755619847364,-1018.4417602,0.0001273,2]
[380231971,1755619847377,-1017.54089173,0.0001273,2]
[380231973,1755619847386,-1000.17572962,0.0001273,2]
[380231975,1755619847396,-1103.26193556,0.0001273,2]
[380231977,1755619847405,-1040.91356579,0.0001273,2]
[380231979,1755619847414,-1129.87864723,0.0001273,2]
[380231981,1755619847423,-1118.84046275,0.0001273,2]
[380231983,1755619847433,-1069.73517367,0.0001273,2]
[380231985,1755619847442,-1119.59870545,0.0001273,2]
[380231987,1755619847452,-1115.66587997,0.0001273,2]
[380231988,1755619847462,-1146.81160861,0.0001273,2]